Cogmind - Beta 10.2 @@@ ROGUE MODE // 2021.05.11 @ 18:35:09 Player: Cookedpoo Result: Destroyed by Y-45 Defender with Heavy Assault Rifle Performance ------------- Evolutions (0) 0 Regions Visited (2) 400 Robots Destroyed (24) 120 Value Destroyed (500) 500 Prototype IDs (0) 0 Alien Tech Used (0) 0 Bonus (0) 0 TOTAL SCORE: 1020 Bonus ------- None Cogmind --------- Core Integrity 0/250 Matter 295/300 Energy 115/125 System Corruption 0% Temperature Cool (210) Movement Rolling (110) Ox1 Location -10/Mines Parts ------- > --- POWER (1) -------- Light Ion Engine > --- PROPULSION (2) --- Compact Wheel > --- UTILITY (2) ------ Small Storage Unit Large Storage Unit > --- WEAPON (2) ------- (None) > --- INVENTORY (12) --- Light Treads Wheel Compact Wheel Improved Heat Sink Medium Laser Small Laser Small Laser Mining Laser Mining Laser Mining Laser Mining Laser Peak State ------------ > --- POWER ------------ Light Ion Engine > --- PROPULSION ------- Compact Wheel Compact Wheel > --- UTILITY ---------- Small Storage Unit Large Storage Unit > --- WEAPON ----------- Medium Laser Small Laser > --- INVENTORY -------- Light Treads Wheel Compact Wheel Improved Heat Sink Medium Laser Medium Laser Small Laser Mining Laser [Rating: 8] Favorites ----------- Power Light Ion Engine Engine Light Ion Engine Propulsion Compact Wheel Treads Light Treads Wheel Compact Wheel Utility Small Storage Unit Storage Small Storage Unit Weapon Medium Laser Energy Gun Medium Laser Build | -11 -10 -10 ------- Run | Scr Mat Min Slots Evolved . | . . . Power . | . . . Propulsion . | . . . Utility . | . . . Weapon . | . . . Parts Attached 22 | 6 14 2 Power 5 | 1 4 . Engine 5 | 1 4 . Core . | . . . Reactor . | . . . Propulsion 8 | 2 6 . Treads 4 | 1 3 . Leg . | . . . Wheel 4 | 1 3 . Hover . | . . . Flight . | . . . Utility 2 | 1 1 . Device . | . . . Storage 2 | 1 1 . Processor . | . . . Hackware . | . . . Protection . | . . . Artifact . | . . . Weapon 7 | 2 3 2 Energy Gun 7 | 2 3 2 Energy Cannon . | . . . Ballistic Gun . | . . . Ballistic Cannon . | . . . Launcher . | . . . Special Weapon . | . . . Impact Weapon . | . . . Slashing Weapon . | . . . Piercing Weapon . | . . . Special Melee Weapon . | . . . Unidentified Prototypes . | . . . Parts Lost 11 | . 7 4 Power 2 | . 2 . Propulsion 1 | . . 1 Utility . | . . . Weapon 8 | . 5 3 Highest Loss Streak 4 | . 3 4 Average Slot Usage (%) 92 | . 86 99 Engine 13 | . 12 14 Treads 6 | . 11 . Wheel 20 | . 15 27 Storage 27 | . 26 28 Energy Gun 22 | . 18 27 Naked Turns . | . . . Heaviest Build 29 | 12 29 27 Greatest Support 40 | 10 40 32 Greatest Overweight (x) 1 | 1 1 . Average Overweight (x) . | . . . Largest Inventory Capacity 12 | 6 12 12 Average Capacity 11 | 5 11 12 Most Carried 12 | 5 10 12 Average Carried 8 | 2 6 11 Final Capacity 12 | 6 12 12 Final Carried 11 | 5 10 11 Class Distribution -------------------- 100% | Mutant Dominant Class ---------------- Mutant | -10/Materials Mutant | -10/Mines Resources | -11 -10 -10 ----------- Run | Scr Mat Min Matter Collected 366 | 260 106 . Remotely . | . . . Salvage Created 908 | 67 709 132 Parts 45 | 3 31 11 Haulers Intercepted 1 | . 1 . Recyclers Shooed 3 | . 3 . Parts Field Recycled . | . . . Retrieved Matter . | . . . Parts Self-Destructed . | . . . Prevented . | . . . Kills | -11 -10 -10 ------- Run | Scr Mat Min Combat Hostiles Destroyed 16 | . 12 4 Melee 5 | . 5 . Guns 11 | . 7 4 Classes Destroyed 8 | 1 5 2 Tunneler 2 | . . 2 Hauler 1 | . 1 . Recycler 3 | 1 2 . Mechanic 1 | . 1 . Watcher 1 | . 1 . Swarmer 6 | . 3 3 Grunt 9 | . 9 . Sentry 1 | . . 1 Best Kill Streak 5 | 1 5 3 Combat Bots Only 4 | . 4 3 Max Kills in Single Turn 1 | 1 1 1 Gunslinging . | . . . Exploded . | . . . Melee 1 | . 1 . Uniques/NPCs Destroyed . | . . . Combat | -11 -10 -10 -------- Run | Scr Mat Min Damage Taken 1163 | . 867 296 Core 263 | . 176 87 Absorbed by Shields . | . . . Core Remaining (%) 100 | 100 . . Volleys Fired 79 | 3 56 20 Largest 2 | 2 2 2 Hottest 100 | 90 100 100 Shots Fired 119 | 6 84 29 Gun 119 | 6 84 29 Cannon . | . . . Launcher . | . . . Special . | . . . Kinetic . | . . . Thermal 119 | 6 84 29 Explosive . | . . . Electromagnetic . | . . . Robot Hit Streak 9 | 3 9 8 Robot Miss Streak 3 | 1 3 1 Penetration Max . | . . . Secondary Targets 2 | . . 2 Max Gunslinging Chain 1 | . . 1 Shots Hit Robots 81 | 5 59 17 Core Hits 52 | 2 43 7 Critical Hits . | . . . Critical Kills . | . . . Critical Parts Destroyed . | . . . Melee Attacks . | . . . Impact . | . . . Slashing . | . . . Piercing . | . . . Sneak Attacks . | . . . Combat Hostiles . | . . . Follow-up Attacks . | . . . Damage Inflicted 1013 | 58 745 210 Guns 930 | 58 662 210 Cannons . | . . . Explosions . | . . . Melee . | . . . Ramming 83 | . 83 . Kinetic . | . . . Thermal 930 | 58 662 210 Explosive . | . . . Electromagnetic . | . . . Impact . | . . . Slashing . | . . . Piercing . | . . . Highest Corruption . | . . . Average Corruption . | . . . Corruption Purged . | . . . Overload Shots . | . . . Overflow Damage . | . . . Projectiles . | . . . Explosions . | . . . Melee . | . . . Knockbacks 1 | . 1 . Impact 1 | . 1 . Kinetic . | . . . Secondary . | . . . Self-Inflicted Damage 7 | . 7 . Shots . | . . . Rammed 31 | . 31 . Targets Rammed 35 | . 35 . Kicked . | . . . Crushed 4 | . 4 . Highest Temperature 307 | 90 307 201 Average Temperature 80 | 46 89 58 Received Heat Transfer 567 | . 468 99 Siege Activations . | . . . Robots Corrupted . | . . . Combat Hostiles . | . . . Parts Fried . | . . . Impact Corruptions . | . . . Robots Melted . | . . . Combat Hostiles . | . . . Parts Melted 4 | . 4 . Heat Transferred 2733 | 161 1955 617 Parts Sabotaged . | . . . Parts Stolen . | . . . Parts Stripped . | . . . Power Chain Reactions . | . . . Missiles Intercepted . | . . . Alert | -11 -10 -10 ------- Run | Scr Mat Min Peak Influence 195 | 5 195 109 Initial 29 | . 3 29 Average 73 | 1 74 78 Maximum Alert Level . | . . . Low Security (%) 100 | 100 100 100 Level 1 . | . . . Level 2 . | . . . Level 3 . | . . . Level 4 . | . . . Level 5 . | . . . High Security . | . . . Max Security . | . . . Squads Dispatched 2 | . 2 . Investigation 1 | . 1 . Extermination . | . . . Reinforcement 1 | . 1 . Assault . | . . . Garrison . | . . . Intercept . | . . . Construction Impeded . | . . . Haulers Reinforced . | . . . Stealth | -11 -10 -10 --------- Run | Scr Mat Min Distress Signals 2 | . 2 . Communications Jammed . | . . . Distress Signals . | . . . Times Spotted 25 | . 21 4 Peak Tracking Total 5 | . 5 2 Tactical Retreats . | . . . Traps | -11 -10 -10 ------- Run | Scr Mat Min Traps Triggered . | . . . Indirectly . | . . . Trap Hack Attempts . | . . . Triggered . | . . . Disarmed . | . . . Reprogrammed . | . . . Reused . | . . . Traps Extracted . | . . . Installed . | . . . Triggered . | . . . Machines | -11 -10 -10 ---------- Run | Scr Mat Min Machines Disabled . | . . . Max in Single Turn . | . . . Machines Sabotaged . | . . . Garrisons Compromised . | . . . Overloaded Fab Kills . | . . . Fab Network Shutdowns . | . . . Hacking | -11 -10 -10 --------- Run | Scr Mat Min Machines Accessed 6 | . 6 . Terminals 4 | . 4 . Fabricators . | . . . Repair Stations 1 | . 1 . Recycling Units 1 | . 1 . Scanalyzers . | . . . Garrison Access . | . . . Total Hacks 23 | . 23 . Successful 8 | . 8 . Failed 14 | . 14 . Catastrophic 2 | . 2 . Database Lockouts 1 | . 1 . Manual 10 | . 10 . Terminals 17 | . 17 . Fabricators . | . . . Repair Stations 4 | . 4 . Recycling Units 2 | . 2 . Scanalyzers . | . . . Garrison Access . | . . . Terminal Hacks 5 | . 5 . Robot Analysis 1 | . 1 . Unreport Threat 3 | . 3 . Zone Layout 1 | . 1 . Fabricator Hacks . | . . . Repair Station Hacks 3 | . 3 . Scan Component 1 | . 1 . Repair 1 | . 1 . Refit 1 | . 1 . Recycling Unit Hacks . | . . . Scanalyzer . | . . . Garrison Access Hacks . | . . . Unauthorized Hacks . | . . . Terminals . | . . . Fabricators . | . . . Repair Stations . | . . . Recycling Units . | . . . Scanalyzers . | . . . Garrison Access . | . . . Data Cores Recovered . | . . . Used . | . . . Hacking Detections 6 | . 6 . Full Trace Events 2 | . 2 . Feedback Events . | . . . Feedback Blocked . | . . . Robot Schematics Acquired . | . . . Robots Built . | . . . Matter . | . . . Time . | . . . Total Robot Build Rating . | . . . Part Schematics Acquired . | . . . Parts Built . | . . . Matter . | . . . Time . | . . . Total Part Build Rating . | . . . Parts Repaired 1 | . 1 . Time 26 | . 26 . Parts Recycled . | . . . Recycled Matter . | . . . Retrieved Matter . | . . . Retrieved Components . | . . . Parts Scanalyzed . | . . . Part Schematics Acquired . | . . . Parts Damaged . | . . . Bothacking | -11 -10 -10 ------------ Run | Scr Mat Min Used RIF Installer . | . . . Robots Hacked . | . . . Non-combat . | . . . Combat . | . . . Robot Hacks Applied . | . . . Relay Couplers Released . | . . . Robots Rewired . | . . . Allies Hacked . | . . . Hacks Repelled . | . . . Allies | -11 -10 -10 -------- Run | Scr Mat Min Total Allies . | . . . Largest Group . | . . . Highest-Rated Group . | . . . Highest-Rated Ally . | . . . Total Orders . | . . . Ally Attacks . | . . . Total Damage . | . . . Kills . | . . . Allies Corrupted . | . . . Allies Melted . | . . . Intel | -11 -10 -10 ------- Run | Scr Mat Min Robot Analysis Total 1 | . 1 . Derelict Logs Recovered 1 | . . 1 Drone Launches . | . . . Drone Recoveries . | . . . Exploration | -11 -10 -10 ------------- Run | Scr Mat Min Turns Passed 1249 | 58 681 510 Spaces Moved 839 | 40 347 452 Core 2 | 2 . . Treads 51 | . 51 . Legs . | . . . Wheels 786 | 38 296 452 Hover . | . . . Flight . | . . . Fastest Speed 50 | 50 90 100 Average Speed 103 | 85 110 100 Slowest Speed 160 | 90 160 100 Overloaded Moves . | . . . Propulsion Burnouts . | . . . Robots Hopped . | . . . Cave-ins Triggered . | . . . Exploration Rate (%) 50 | 4 49 97 Regions Visited 2 Branch Regions 1 Pre-discovered Areas . | . . . Known Exits Taken . | . . . Unknown Exits Taken 2 | 1 1 . Scrap Searched 1 | . . 1 Spaces Dug . | . . . Terrain Destroyed . | . . . Melee . | . . . Projectile . | . . . AOE . | . . . Terrain Rammed . | . . . Walls Destroyed . | . . . Machines Disabled . | . . . Actions | -11 -10 -10 --------- Run | Scr Mat Min Total 1071 | 54 535 482 Wait 79 | 1 72 6 Move 837 | 39 346 452 Hop . | . . . Pick Up 16 | 5 9 2 Fast Attach 10 | 6 4 . Attach 4 | . 3 1 Detach . | . . . Swap 8 | . 7 1 Drop 3 | . 3 . Fire 79 | 3 56 20 Melee . | . . . Ram 3 | . 3 . Kick . | . . . Crush 32 | . 32 . Escape Stasis . | . . . Rewire . | . . . Trap . | . . . Miscellaneous . | . . . Route ------- -11/Scrapyard -10/Materials (discovered 2 exits: [*Mat] / [*Min]) -10/Mines (discovered 2 exits: [*Mat x2]) History --------- Turn | Location | Event 6 | -11/Scrapyard | Discovered new exit (range 16) 59 | -11/Scrapyard | Entered Materials 229 | -10/Materials | Lost 3 parts (3w) 270 | -10/Materials | Repaired Lgt. Treads 325 | -10/Materials | Build established: Mutant 363 | -10/Materials | Lost 3 parts (1p2w) 378 | -10/Materials | Central database locked down 419 | -10/Materials | Core integrity fell below 50% 478 | -10/Materials | Discovered new exit (range 16) 587 | -10/Materials | Discovered new exit (range 13) 740 | -10/Materials | Entered Mines 770 | -10/Mines | Discovered new exit (range 8) 827 | -10/Mines | Discovered new exit (range 15) 1221 | -10/Mines | Core integrity fell below 20% 1250 | -10/Mines | Destroyed by Y-45 Defender with Heavy Assault Rifle Last Messages --------------- 00746_ S-10 Pest destroyed. 00760_ K-01 Serf collects debris. 00770_ EXIT=FOUND 00771_ K-01 Serf cleans the Seismic Survey Station. 00777_ Acquired derelict log, extracted data. Data stored: Mines entrances (x2). 00779_ Searching scrap... 00779_ Found Med. Laser. 00779_ Found 37 Matter. 00781_ Acquired Med. Laser. 00827_ EXIT=FOUND 01077_ T-07 Excavator destroyed. 01084_ Acquired Mining Laser. 01085_ R-06 Scavenger collects Lgt. Ion Engine. 01089_ R-06 Scavenger collects Wheel. 01226_ Med. Laser destroyed. 01247_ Com. Wheel destroyed. 01248_ Med. Laser destroyed. 01250_ Y-45 Defender destroyed. 01250_ Med. Laser destroyed. Map ----- +----------------------------------------------------+ | | | | | | | | | | | | | | | | | | | | | | | | | | | ??????????????#??????????????????????????????????? | | ???????????##" ????????????????????????????????### | | ???????????#!! ???????????????????????????????# | | ????????????[[ ????######?????????????????????# | | ????????????? ???## ##????????????????????# | | ??#####???#### #### #????????????????????# | | ?## ### ## #????????????????????# | | ?# # #????????????????????### | | ?# ##??????????????????????? | | ?# ####???????????????????????? | | ??# ##?????????????????????##### | | ???# ####?????###?????????## # | | ???## Y @##??## #??####??## | | ????## ### !% #### #?## ##?# | | ?????#######??## ! ## #?# ### | | ???????????????### # #??# | | #############????# ######## ##??## # | | #????# #??????######????## ##### ## | | #????# ##????????????????# ##?####? | | !!! #????# ####????????????## ##????? | | !!! #????# ##???????????# #????? | | !!!! #???## #???????????# #????? | | !! ! #??## """ #???????????# #????? | | #??# """ ##???????????## ##????? | | #??# """ ##?????????????## #????## | | #??## #???????????????# #???## | | #???## #??????????????## #??## | | ## #######??????# ##?????????????## ##?## | | ?# #????????????## ##??????????????# #### | | ?# #?????????????## #???????????????# | | ?# #??????????????# #???????????????## | | ?# #????######??### #????????????????#### | | ?# ###### ##?# #???????????????????## | | ?# #?# ###????????????????????#### | | ?# ##### ### ###???????????????????????## | | ?# ##### %% ##???????????????????????## | | ?# # #????????????????????????##! | +----------------------------------------------------+ Best States ------------- Heat Dissipation 25 Energy Generation 10 Energy Capacity 250 Matter Stores 300 Matter Capacity 300 Sight Range 16 Terrain Scan Density 10 Evasion (%) 44 Recoil Reduction 2 Item Schematics ----------------- None Robot Schematics ------------------ None Fabricated ------------ Nothing Alien Tech Used ----------------- None Achievements -------------- None Challenges ------------ None Game ------ Seed MakeshiftLegArray Manual? 0 Play Time 00:13:54 Cumulative 128.0 hours Start 2021.05.11 @ 18:22:17 End 2021.05.11 @ 18:35:09 Sessions 1 Manual Loads 0 Difficulty Rogue Special Mode None Game No. 111 Rogue 111 Adventurer 0 Explorer 0 Win Type - Total 3 Types 3/0/0/0/0/0/0/0/0 Lore% 62 Gallery% 65 Achievement% 53 Wizard Run 0 Options --------- ASCII 1 Keyboard 1 Movement Arrows Keybinds 0 Fullscreen 2 Font 18/TerminusBold Map View 76x50 Tactical HUD 1 Map Filters NONE Filters NONE Steam 1 RUN: e1117d8d-afb2-42b6-a3e1-bb0123d832a2